[Event "*** SCC Grand Prix: Titled Tuesday Blitz"]
[Site "Chess.com"]
[Date "2020.06.23"]
[Round "7"]
[White "HouseOfDurin"]
[Black "nitpicker"]
[Result "0-1"]
[WhiteElo "1914"]
[BlackElo "2166"]
[TimeControl "180+1"]
[EndTime "11:15:14 PDT"]
[Termination "nitpicker won on time"]

1. d4 {[%clk 0:03:00.9]} 1... f5 {[%clk 0:02:58.9]} 2. Bg5 {[%clk 0:03:00.1]}
2... h6 {[%clk 0:02:57.5]} 3. Bh4 {[%clk 0:03:00.1]} 3... g6 {[%clk 0:02:47]} 4.
g4 {[%clk 0:02:49.4]} 4... fxg4 {[%clk 0:02:37.1]} 5. Qd3 {[%clk 0:02:44]} 5...
Kf7 {[%clk 0:02:36.7]} 6. e4 {[%clk 0:02:14.5]} 6... d5 {[%clk 0:02:33.5]} 7.
Bg2 {[%clk 0:02:08.3]} 7... c6 {[%clk 0:02:31.6]} 8. Nc3 {[%clk 0:02:00.3]} 8...
Nf6 {[%clk 0:02:20.4]} 9. Bxf6 {[%clk 0:01:21.8]} 9... exf6 {[%clk 0:02:19.9]}
10. exd5 {[%clk 0:01:22.4]} 10... Bf5 {[%clk 0:02:20]} 11. Be4 {[%clk
0:00:57.9]} 11... Bxe4 {[%clk 0:02:19.6]} 12. Qxe4 {[%clk 0:00:51.6]} 12... f5
{[%clk 0:02:09.6]} 13. Qe6+ {[%clk 0:00:40.1]} 13... Kg7 {[%clk 0:02:09.9]} 14.
O-O-O {[%clk 0:00:26.8]} 14... cxd5 {[%clk 0:01:45.9]} 15. Nge2 {[%clk
0:00:10.8]} 15... Nc6 {[%clk 0:01:40.6]} 0-1

[Event "*** SCC Grand Prix: Titled Tuesday Blitz"]
[Site "Chess.com"]
[Date "2020.06.23"]
[Round "7"]
[White "Kumi29"]
[Black "iaraldinho"]
[Result "0-1"]
[WhiteElo "2389"]
[BlackElo "2546"]
[TimeControl "180+1"]
[EndTime "11:15:32 PDT"]
[Termination "iaraldinho won by checkmate"]

1. e4 {[%clk 0:03:00.9]} 1... c5 {[%clk 0:02:59.5]} 2. b3 {[%clk 0:03:00.8]}
2... d5 {[%clk 0:02:59.2]} 3. exd5 {[%clk 0:03:00.6]} 3... Qxd5 {[%clk
0:03:00.1]} 4. Nc3 {[%clk 0:03:01]} 4... Qd6 {[%clk 0:03:00]} 5. Bb2 {[%clk
0:02:59.3]} 5... Nf6 {[%clk 0:03:00.4]} 6. Nf3 {[%clk 0:02:58.3]} 6... Nc6
{[%clk 0:03:00.2]} 7. Bb5 {[%clk 0:02:57.2]} 7... a6 {[%clk 0:02:59.1]} 8. Bxc6+
{[%clk 0:02:57.1]} 8... Qxc6 {[%clk 0:03:00]} 9. Qe2 {[%clk 0:02:56.8]} 9... Bg4
{[%clk 0:02:59]} 10. O-O-O {[%clk 0:02:56.7]} 10... e6 {[%clk 0:02:55.4]} 11. d4
{[%clk 0:02:52.1]} 11... cxd4 {[%clk 0:02:54.2]} 12. Rxd4 {[%clk 0:02:51.8]}
12... Bxf3 {[%clk 0:02:49.5]} 13. gxf3 {[%clk 0:02:51.4]} 13... Bc5 {[%clk
0:02:49.4]} 14. Rd2 {[%clk 0:02:29.7]} 14... Bb4 {[%clk 0:02:47.5]} 15. Rd3
{[%clk 0:02:26.6]} 15... Rc8 {[%clk 0:02:45.6]} 16. Ne4 {[%clk 0:02:16.8]} 16...
Nxe4 {[%clk 0:02:41.8]} 17. fxe4 {[%clk 0:02:15.9]} 17... f6 {[%clk 0:02:30.8]}
18. Rg1 {[%clk 0:02:12.1]} 18... O-O {[%clk 0:02:29.9]} 19. Kb1 {[%clk
0:02:04.9]} 19... Rc7 {[%clk 0:02:28.1]} 20. Rdg3 {[%clk 0:01:59.7]} 20... Bd6
{[%clk 0:02:22.3]} 21. e5 {[%clk 0:01:52.5]} 21... Bxe5 {[%clk 0:02:18.2]} 22.
Bxe5 {[%clk 0:01:52]} 22... fxe5 {[%clk 0:02:18.1]} 23. Qxe5 {[%clk 0:01:50.6]}
23... Qxc2+ {[%clk 0:02:15.1]} 24. Ka1 {[%clk 0:01:50.4]} 24... g6 {[%clk
0:01:58.8]} 25. Qxe6+ {[%clk 0:01:49.1]} 25... Rff7 {[%clk 0:01:59]} 26. Qe8+
{[%clk 0:01:39.8]} 26... Kg7 {[%clk 0:01:53.2]} 27. Qe5+ {[%clk 0:01:37.6]}
27... Rf6 {[%clk 0:01:49.6]} 28. h4 {[%clk 0:01:28.6]} 28... Qc5 {[%clk
0:01:39.6]} 29. Qe8 {[%clk 0:01:15.6]} 29... Re7 {[%clk 0:01:27.7]} 30. Qa4
{[%clk 0:01:01.5]} 30... b5 {[%clk 0:01:23.7]} 31. Qg4 {[%clk 0:00:55.8]} 31...
Rxf2 {[%clk 0:01:18.8]} 32. Qg5 {[%clk 0:00:51.6]} 32... Qd4+ {[%clk 0:01:18.1]}
33. Kb1 {[%clk 0:00:49.7]} 33... Qb2# {[%clk 0:01:18]} 0-1

[Event "*** SCC Grand Prix: Titled Tuesday Blitz"]
[Site "Chess.com"]
[Date "2020.06.23"]
[Round "7"]
[White "Resignify"]
[Black "mr65"]
[Result "1-0"]
[WhiteElo "2126"]
[BlackElo "2070"]
[TimeControl "180+1"]
[EndTime "11:15:34 PDT"]
[Termination "Resignify won on time"]

1. Nf3 {[%clk 0:03:00.9]} 1... Nf6 {[%clk 0:02:59]} 2. g3 {[%clk 0:03:01.1]}
2... g6 {[%clk 0:02:58.8]} 3. Bg2 {[%clk 0:03:01.4]} 3... Bg7 {[%clk 0:02:58.6]}
4. O-O {[%clk 0:03:01.4]} 4... O-O {[%clk 0:02:58]} 5. d3 {[%clk 0:03:01.8]}
5... d5 {[%clk 0:02:57.5]} 6. Nbd2 {[%clk 0:03:01.4]} 6... c5 {[%clk 0:02:56.9]}
7. Re1 {[%clk 0:03:01.7]} 7... Nc6 {[%clk 0:02:55.8]} 8. e4 {[%clk 0:03:01.9]}
8... dxe4 {[%clk 0:02:53.6]} 9. dxe4 {[%clk 0:03:02]} 9... Bg4 {[%clk
0:02:25.5]} 10. h3 {[%clk 0:02:58.5]} 10... Bxf3 {[%clk 0:02:24.1]} 11. Qxf3
{[%clk 0:02:57.6]} 11... e5 {[%clk 0:02:23.1]} 12. c3 {[%clk 0:02:51.8]} 12...
Qe7 {[%clk 0:02:14.7]} 13. Nc4 {[%clk 0:02:50.8]} 13... Nd7 {[%clk 0:02:09.7]}
14. Qe2 {[%clk 0:02:15.8]} 14... Rae8 {[%clk 0:01:36.8]} 15. Rd1 {[%clk
0:02:13.7]} 15... b6 {[%clk 0:01:33.8]} 16. Ne3 {[%clk 0:02:10.3]} 16... Nf6
{[%clk 0:01:32.3]} 17. Qb5 {[%clk 0:02:05.5]} 17... Qb7 {[%clk 0:00:19.4]} 18.
Nc4 {[%clk 0:02:00.4]} 18... a6 {[%clk 0:00:16.5]} 19. Qxb6 {[%clk 0:01:59.9]}
19... Qxb6 {[%clk 0:00:15.2]} 20. Nxb6 {[%clk 0:02:00]} 20... Rd8 {[%clk
0:00:07.1]} 21. Bg5 {[%clk 0:01:58.9]} 21... h6 {[%clk 0:00:05.8]} 22. Bxf6
{[%clk 0:01:57.7]} 22... Bxf6 {[%clk 0:00:05.3]} 23. Nd7 {[%clk 0:01:53.6]} 1-0

[Event "*** SCC Grand Prix: Titled Tuesday Blitz"]
[Site "Chess.com"]
[Date "2020.06.23"]
[Round "7"]
[White "cukin84"]
[Black "argentum049"]
[Result "0-1"]
[WhiteElo "2150"]
[BlackElo "2388"]
[TimeControl "180+1"]
[EndTime "11:15:46 PDT"]
[Termination "argentum049 won by resignation"]

1. e4 {[%clk 0:03:00.9]} 1... e6 {[%clk 0:02:57.5]} 2. d4 {[%clk 0:03:00.3]}
2... d5 {[%clk 0:02:57.5]} 3. Nc3 {[%clk 0:02:59.2]} 3... Nf6 {[%clk 0:02:57.1]}
4. e5 {[%clk 0:02:58.7]} 4... Nfd7 {[%clk 0:02:56.9]} 5. f4 {[%clk 0:02:58.9]}
5... c5 {[%clk 0:02:57.6]} 6. Nf3 {[%clk 0:02:58.3]} 6... Nc6 {[%clk 0:02:58.5]}
7. Be3 {[%clk 0:02:58]} 7... Be7 {[%clk 0:02:58.1]} 8. Be2 {[%clk 0:02:54.4]}
8... O-O {[%clk 0:02:57.8]} 9. O-O {[%clk 0:02:54.4]} 9... b6 {[%clk 0:02:57.8]}
10. f5 {[%clk 0:02:43.5]} 10... cxd4 {[%clk 0:02:54.2]} 11. Bxd4 {[%clk
0:02:38.2]} 11... Nxd4 {[%clk 0:02:52.5]} 12. Nxd4 {[%clk 0:02:37.8]} 12... Nxe5
{[%clk 0:02:50.9]} 13. Kh1 {[%clk 0:02:25.8]} 13... Bf6 {[%clk 0:02:46.9]} 14.
Bb5 {[%clk 0:02:09.5]} 14... a6 {[%clk 0:02:44.8]} 15. Be2 {[%clk 0:02:02.9]}
15... b5 {[%clk 0:02:42.9]} 16. a3 {[%clk 0:02:02]} 16... Qb6 {[%clk 0:02:42.5]}
17. Nf3 {[%clk 0:01:34.2]} 17... Nc4 {[%clk 0:02:41.1]} 18. Qc1 {[%clk
0:01:24.2]} 18... Bb7 {[%clk 0:02:38.9]} 19. Nd1 {[%clk 0:01:17]} 19... Rac8
{[%clk 0:02:37.3]} 20. b3 {[%clk 0:01:14.6]} 20... Bxa1 {[%clk 0:02:32.9]} 21.
Qxa1 {[%clk 0:01:13.7]} 21... Ne3 {[%clk 0:02:32]} 22. Nxe3 {[%clk 0:01:10.4]}
22... Qxe3 {[%clk 0:02:30.5]} 23. Bd3 {[%clk 0:01:09.3]} 23... Rfe8 {[%clk
0:02:24.1]} 24. Ne5 {[%clk 0:00:45.3]} 24... exf5 {[%clk 0:02:19.9]} 25. Nxf7
{[%clk 0:00:34.6]} 25... Kxf7 {[%clk 0:02:10]} 26. Bxf5 {[%clk 0:00:34.5]} 26...
Kg8 {[%clk 0:02:07.8]} 27. Bxc8 {[%clk 0:00:17.8]} 27... Rxc8 {[%clk 0:02:05.9]}
28. Qd1 {[%clk 0:00:16.3]} 28... d4 {[%clk 0:02:04.7]} 29. Qg4 {[%clk
0:00:15.9]} 29... Qe4 {[%clk 0:02:00.8]} 30. Qg5 {[%clk 0:00:15.2]} 30... h6
{[%clk 0:01:57.9]} 31. Qg3 {[%clk 0:00:14.2]} 31... Rxc2 {[%clk 0:01:56.4]} 32.
Rg1 {[%clk 0:00:13.2]} 32... d3 {[%clk 0:01:55.2]} 33. Qb8+ {[%clk 0:00:12.8]}
33... Kh7 {[%clk 0:01:54.4]} 34. Qg3 {[%clk 0:00:12.5]} 34... Rxg2 {[%clk
0:01:53.2]} 35. Rxg2 {[%clk 0:00:12.1]} 35... d2 {[%clk 0:01:53.1]} 0-1

[Event "*** SCC Grand Prix: Titled Tuesday Blitz"]
[Site "Chess.com"]
[Date "2020.06.23"]
[Round "7"]
[White "Canairez"]
[Black "pastouche06"]
[Result "1-0"]
[WhiteElo "2368"]
[BlackElo "2466"]
[TimeControl "180+1"]
[EndTime "11:15:48 PDT"]
[Termination "Canairez won on time"]

1. d4 {[%clk 0:03:00.9]} 1... Nf6 {[%clk 0:02:57.3]} 2. Nf3 {[%clk 0:03:00.8]}
2... d5 {[%clk 0:02:57]} 3. e3 {[%clk 0:03:00.9]} 3... c5 {[%clk 0:02:48.9]} 4.
c3 {[%clk 0:02:59.5]} 4... Qc7 {[%clk 0:02:45.8]} 5. dxc5 {[%clk 0:02:56.7]}
5... Qxc5 {[%clk 0:02:46.7]} 6. b3 {[%clk 0:02:56.9]} 6... g6 {[%clk 0:02:45.2]}
7. Be2 {[%clk 0:02:53.9]} 7... Bg7 {[%clk 0:02:45.1]} 8. O-O {[%clk 0:02:52.2]}
8... O-O {[%clk 0:02:45.1]} 9. Bb2 {[%clk 0:02:42.1]} 9... Qc7 {[%clk 0:02:22]}
10. c4 {[%clk 0:02:37.5]} 10... Rd8 {[%clk 0:02:17.4]} 11. Qc1 {[%clk
0:02:28.1]} 11... dxc4 {[%clk 0:02:04.9]} 12. Bxc4 {[%clk 0:02:21.4]} 12... Nc6
{[%clk 0:02:05.3]} 13. Nc3 {[%clk 0:02:21.2]} 13... a6 {[%clk 0:01:54.6]} 14. h3
{[%clk 0:02:17.1]} 14... b5 {[%clk 0:01:50.6]} 15. Be2 {[%clk 0:02:04.9]} 15...
Bb7 {[%clk 0:01:50.3]} 16. Rd1 {[%clk 0:02:02.2]} 16... Rxd1+ {[%clk 0:01:43.9]}
17. Qxd1 {[%clk 0:02:01.9]} 17... Rd8 {[%clk 0:01:44.3]} 18. Qe1 {[%clk
0:01:57.2]} 18... Ne5 {[%clk 0:01:06.7]} 19. Nxe5 {[%clk 0:01:50.2]} 19... Qxe5
{[%clk 0:01:07.6]} 20. Rd1 {[%clk 0:01:49.3]} 20... Rc8 {[%clk 0:01:00.5]} 21.
Nd5 {[%clk 0:01:30.7]} 21... Qg5 {[%clk 0:00:33.1]} 22. f4 {[%clk 0:01:20.8]}
1-0

[Event "*** SCC Grand Prix: Titled Tuesday Blitz"]
[Site "Chess.com"]
[Date "2020.06.23"]
[Round "7"]
[White "silverback96"]
[Black "Kapitan_Bayan"]
[Result "0-1"]
[WhiteElo "2278"]
[BlackElo "2451"]
[TimeControl "180+1"]
[EndTime "11:15:53 PDT"]
[Termination "Kapitan_Bayan won by checkmate"]

1. Nf3 {[%clk 0:03:00.9]} 1... Nf6 {[%clk 0:02:59.4]} 2. c4 {[%clk 0:03:00.5]}
2... e6 {[%clk 0:02:59.6]} 3. Nc3 {[%clk 0:03:00.4]} 3... d5 {[%clk 0:03:00.2]}
4. e3 {[%clk 0:02:59.3]} 4... c5 {[%clk 0:02:59.4]} 5. cxd5 {[%clk 0:02:55.7]}
5... exd5 {[%clk 0:02:52.6]} 6. d4 {[%clk 0:02:55.5]} 6... Nc6 {[%clk
0:02:53.1]} 7. Bb5 {[%clk 0:02:54.2]} 7... Bd6 {[%clk 0:02:47.3]} 8. Ne5 {[%clk
0:02:23.1]} 8... Qb6 {[%clk 0:02:19.9]} 9. a4 {[%clk 0:01:14.9]} 9... O-O {[%clk
0:02:10.1]} 10. dxc5 {[%clk 0:01:10.6]} 10... Bxc5 {[%clk 0:01:51.6]} 11. Nxd5
{[%clk 0:01:10.4]} 11... Nxd5 {[%clk 0:01:41.5]} 12. Qxd5 {[%clk 0:01:11.3]}
12... Bb4+ {[%clk 0:01:37.6]} 13. Kf1 {[%clk 0:01:10.3]} 13... Be6 {[%clk
0:01:30.8]} 14. Qe4 {[%clk 0:01:00.8]} 14... Nxe5 {[%clk 0:01:14.4]} 15. Qxe5
{[%clk 0:01:00.7]} 15... Rfd8 {[%clk 0:01:08.7]} 16. Be2 {[%clk 0:00:58.1]}
16... Rd5 {[%clk 0:01:02.5]} 17. Qg3 {[%clk 0:00:55.6]} 17... Rad8 {[%clk
0:01:02.1]} 18. b3 {[%clk 0:00:46.1]} 18... Rd1+ {[%clk 0:00:47.7]} 19. Bxd1
{[%clk 0:00:46]} 19... Qa6+ {[%clk 0:00:46.8]} 20. Be2 {[%clk 0:00:36.3]} 20...
Rd1# {[%clk 0:00:44.5]} 0-1

[Event "*** SCC Grand Prix: Titled Tuesday Blitz"]
[Site "Chess.com"]
[Date "2020.06.23"]
[Round "7"]
[White "goofypenguin96"]
[Black "Maksimus1998"]
[Result "1-0"]
[WhiteElo "2357"]
[BlackElo "2459"]
[TimeControl "180+1"]
[EndTime "11:15:56 PDT"]
[Termination "goofypenguin96 won by resignation"]

1. e4 {[%clk 0:02:59.9]} 1... c5 {[%clk 0:02:59.8]} 2. Nf3 {[%clk 0:02:59.4]}
2... g6 {[%clk 0:02:59.9]} 3. d4 {[%clk 0:02:55.6]} 3... cxd4 {[%clk 0:02:59.8]}
4. Nxd4 {[%clk 0:02:54.7]} 4... Bg7 {[%clk 0:02:59.7]} 5. Nc3 {[%clk 0:02:54.6]}
5... Nc6 {[%clk 0:02:59.3]} 6. Be3 {[%clk 0:02:54.6]} 6... Nf6 {[%clk
0:02:56.8]} 7. f3 {[%clk 0:02:54.3]} 7... d6 {[%clk 0:02:54.8]} 8. Bc4 {[%clk
0:02:50.6]} 8... Qb6 {[%clk 0:02:49.5]} 9. Nf5 {[%clk 0:02:06.1]} 9... Qxb2
{[%clk 0:02:46.3]} 10. Nxg7+ {[%clk 0:02:05.4]} 10... Kf8 {[%clk 0:02:46.4]} 11.
Nd5 {[%clk 0:02:04.1]} 11... Kxg7 {[%clk 0:02:35.3]} 12. O-O {[%clk 0:01:55]}
12... Qa3 {[%clk 0:02:19.3]} 13. Qd2 {[%clk 0:01:51.7]} 13... h6 {[%clk
0:02:10.7]} 14. Nxf6 {[%clk 0:01:46.7]} 14... exf6 {[%clk 0:02:10.7]} 15. Rad1
{[%clk 0:01:41.4]} 15... Ne5 {[%clk 0:02:10.5]} 16. Bb3 {[%clk 0:01:37.7]} 16...
Be6 {[%clk 0:01:46.7]} 17. Qxd6 {[%clk 0:01:37.6]} 17... Qxd6 {[%clk 0:01:44.7]}
18. Rxd6 {[%clk 0:01:38.5]} 18... Nc4 {[%clk 0:01:37.6]} 19. Rxe6 {[%clk
0:01:16]} 19... Nxe3 {[%clk 0:01:36.9]} 20. Re7 {[%clk 0:01:15.2]} 20... Nxf1
{[%clk 0:01:22.5]} 21. Rxf7+ {[%clk 0:01:14.5]} 21... Kg8 {[%clk 0:01:23]} 22.
Rxf6+ {[%clk 0:01:12.2]} 22... Kg7 {[%clk 0:01:23.3]} 23. Rf7+ {[%clk
0:01:13.1]} 23... Kg8 {[%clk 0:01:23.5]} 24. Rxb7+ {[%clk 0:01:10.8]} 24... Kf8
{[%clk 0:01:23.9]} 25. Kxf1 {[%clk 0:01:09.2]} 25... a5 {[%clk 0:01:22.6]} 26.
a4 {[%clk 0:01:07.2]} 26... g5 {[%clk 0:01:18.6]} 27. e5 {[%clk 0:01:02.6]}
27... h5 {[%clk 0:01:14.8]} 28. e6 {[%clk 0:01:01]} 28... Rh6 {[%clk 0:01:04.7]}
29. e7+ {[%clk 0:00:58.7]} 29... Ke8 {[%clk 0:01:03.7]} 30. Bc4 {[%clk
0:00:58.7]} 1-0

[Event "*** SCC Grand Prix: Titled Tuesday Blitz"]
[Site "Chess.com"]
[Date "2020.06.23"]
[Round "7"]
[White "abubakrtagelsir"]
[Black "Barmen_EV"]
[Result "1-0"]
[WhiteElo "2355"]
[BlackElo "2464"]
[TimeControl "180+1"]
[EndTime "11:16:03 PDT"]
[Termination "abubakrtagelsir won on time"]

1. e4 {[%clk 0:03:00]} 1... c5 {[%clk 0:02:59.8]} 2. Nc3 {[%clk 0:02:59.2]} 2...
Nc6 {[%clk 0:02:59.4]} 3. f4 {[%clk 0:02:58.8]} 3... g6 {[%clk 0:02:59.3]} 4.
Nf3 {[%clk 0:02:58.3]} 4... Bg7 {[%clk 0:03:00.2]} 5. Bb5 {[%clk 0:02:57.6]}
5... Nd4 {[%clk 0:02:59.9]} 6. O-O {[%clk 0:02:57.3]} 6... a6 {[%clk 0:02:56.1]}
7. Bc4 {[%clk 0:02:56.8]} 7... e6 {[%clk 0:02:56.5]} 8. d3 {[%clk 0:02:55.6]}
8... Nh6 {[%clk 0:02:56.9]} 9. Nxd4 {[%clk 0:02:52.7]} 9... Bxd4+ {[%clk
0:02:53.3]} 10. Kh1 {[%clk 0:02:52.4]} 10... f5 {[%clk 0:02:54.2]} 11. e5 {[%clk
0:02:49.7]} 11... b5 {[%clk 0:02:46.2]} 12. Bb3 {[%clk 0:02:49.5]} 12... Ng4
{[%clk 0:02:36.3]} 13. Qe1 {[%clk 0:02:46.8]} 13... Bb7 {[%clk 0:02:13.6]} 14.
h3 {[%clk 0:02:45.1]} 14... h5 {[%clk 0:01:32.7]} 15. Ne2 {[%clk 0:02:44.3]}
15... Be3 {[%clk 0:01:12.4]} 16. Ng1 {[%clk 0:02:16.7]} 16... Bxc1 {[%clk
0:00:56.4]} 17. Rxc1 {[%clk 0:02:16.1]} 17... Qb6 {[%clk 0:00:57.3]} 18. c4
{[%clk 0:01:55.9]} 18... b4 {[%clk 0:00:32.5]} 19. Nf3 {[%clk 0:01:54.6]} 19...
Bxf3 {[%clk 0:00:15.6]} 20. Rxf3 {[%clk 0:01:52.9]} 20... Ke7 {[%clk 0:00:15.6]}
21. Kg1 {[%clk 0:01:46.4]} 21... Nh6 {[%clk 0:00:13.1]} 22. Qh4+ {[%clk
0:01:45.1]} 22... Kf8 {[%clk 0:00:03.6]} 23. Rg3 {[%clk 0:01:35.3]} 23... Nf7
{[%clk 0:00:04.5]} 24. Rxg6 {[%clk 0:01:34.2]} 24... Rc8 {[%clk 0:00:01.4]} 25.
Qf6 {[%clk 0:01:32.8]} 1-0

[Event "*** SCC Grand Prix: Titled Tuesday Blitz"]
[Site "Chess.com"]
[Date "2020.06.23"]
[Round "7"]
[White "Twitch_ElhamBlitz05"]
[Black "kingmonkey2006"]
[Result "1-0"]
[WhiteElo "2766"]
[BlackElo "2578"]
[TimeControl "180+1"]
[EndTime "11:16:04 PDT"]
[Termination "Twitch_ElhamBlitz05 won by resignation"]

1. e4 {[%clk 0:03:00.9]} 1... c5 {[%clk 0:02:59.2]} 2. Nf3 {[%clk 0:02:57.9]}
2... d6 {[%clk 0:02:58.1]} 3. d4 {[%clk 0:02:57.6]} 3... cxd4 {[%clk 0:02:59]}
4. Nxd4 {[%clk 0:02:58.5]} 4... Nf6 {[%clk 0:02:59.4]} 5. f3 {[%clk 0:02:58.6]}
5... e5 {[%clk 0:02:55]} 6. Nb3 {[%clk 0:02:52.9]} 6... d5 {[%clk 0:02:52.5]} 7.
Bg5 {[%clk 0:02:51.4]} 7... Be6 {[%clk 0:02:51.5]} 8. Bxf6 {[%clk 0:02:50]} 8...
gxf6 {[%clk 0:02:52.4]} 9. exd5 {[%clk 0:02:50.9]} 9... Qxd5 {[%clk 0:02:51.3]}
10. Qxd5 {[%clk 0:02:50.5]} 10... Bxd5 {[%clk 0:02:52.2]} 11. Nc3 {[%clk
0:02:50.9]} 11... Be6 {[%clk 0:02:30]} 12. O-O-O {[%clk 0:02:49.8]} 12... Nc6
{[%clk 0:02:15.8]} 13. Bd3 {[%clk 0:02:45.3]} 13... Be7 {[%clk 0:02:11.1]} 14.
g4 {[%clk 0:02:41]} 14... h5 {[%clk 0:02:02.8]} 15. h3 {[%clk 0:02:40.3]} 15...
O-O-O {[%clk 0:02:01.9]} 16. Be4 {[%clk 0:02:39.4]} 16... a6 {[%clk 0:01:31.2]}
17. Nd5 {[%clk 0:02:26.6]} 17... Bxd5 {[%clk 0:01:31.3]} 18. Bxd5 {[%clk
0:02:27.1]} 18... Rdf8 {[%clk 0:01:18.8]} 19. c3 {[%clk 0:02:19.3]} 19... Nd8
{[%clk 0:01:11.9]} 20. Be4 {[%clk 0:02:03]} 20... Rh6 {[%clk 0:00:59]} 21. Na5
{[%clk 0:01:40.1]} 21... Bc5 {[%clk 0:00:55]} 22. Kc2 {[%clk 0:01:30.5]} 22...
Rfh8 {[%clk 0:00:52]} 23. Rxd8+ {[%clk 0:01:24.5]} 23... Rxd8 {[%clk 0:00:39.1]}
24. Nxb7 {[%clk 0:01:24.1]} 24... Bb6 {[%clk 0:00:28]} 25. Nxd8 {[%clk
0:01:21.9]} 25... Kxd8 {[%clk 0:00:28.9]} 26. Rd1+ {[%clk 0:01:20]} 26... Ke8
{[%clk 0:00:25.1]} 27. Rd6 {[%clk 0:01:12]} 1-0

[Event "*** SCC Grand Prix: Titled Tuesday Blitz"]
[Site "Chess.com"]
[Date "2020.06.23"]
[Round "7"]
[White "cassoulet"]
[Black "vugarrasulov"]
[Result "0-1"]
[WhiteElo "2665"]
[BlackElo "2808"]
[TimeControl "180+1"]
[EndTime "11:16:05 PDT"]
[Termination "vugarrasulov won by resignation"]

1. e4 {[%clk 0:03:00.9]} 1... c5 {[%clk 0:02:59.8]} 2. Nf3 {[%clk 0:03:00.4]}
2... e6 {[%clk 0:03:00.1]} 3. d4 {[%clk 0:03:00.2]} 3... cxd4 {[%clk 0:03:01]}
4. Nxd4 {[%clk 0:03:00.9]} 4... Nc6 {[%clk 0:03:01.4]} 5. Nc3 {[%clk 0:03:01.2]}
5... Qc7 {[%clk 0:03:01.9]} 6. g3 {[%clk 0:03:01.4]} 6... a6 {[%clk 0:03:01.8]}
7. Bg2 {[%clk 0:03:01.7]} 7... h5 {[%clk 0:03:02.4]} 8. Be3 {[%clk 0:03:01.1]}
8... h4 {[%clk 0:03:02]} 9. f4 {[%clk 0:02:56.2]} 9... b5 {[%clk 0:02:51.2]} 10.
Qd2 {[%clk 0:02:46.7]} 10... Bb7 {[%clk 0:02:49.6]} 11. O-O {[%clk 0:02:41.2]}
11... hxg3 {[%clk 0:02:48.7]} 12. hxg3 {[%clk 0:02:41]} 12... Nf6 {[%clk
0:02:47]} 13. Bf3 {[%clk 0:02:36.2]} 13... Na5 {[%clk 0:02:41.1]} 14. Qg2 {[%clk
0:01:28]} 14... Nc4 {[%clk 0:02:38.9]} 15. Bf2 {[%clk 0:01:28.2]} 15... Nd2
{[%clk 0:02:30.2]} 16. a3 {[%clk 0:01:17.6]} 16... Nxf1 {[%clk 0:02:20.5]} 17.
Rxf1 {[%clk 0:01:18.5]} 17... Rb8 {[%clk 0:02:09.9]} 18. Rd1 {[%clk 0:01:15.8]}
18... Bc5 {[%clk 0:02:03.2]} 19. e5 {[%clk 0:01:11.4]} 19... Ng4 {[%clk
0:01:59.3]} 20. Bxb7 {[%clk 0:00:48]} 20... Qxb7 {[%clk 0:02:00.2]} 21. Qxb7
{[%clk 0:00:46.5]} 21... Rxb7 {[%clk 0:02:01.1]} 22. Ne4 {[%clk 0:00:45.4]}
22... Nxf2 {[%clk 0:01:50.8]} 23. Nxc5 {[%clk 0:00:31.2]} 23... Nxd1 {[%clk
0:01:50]} 24. Nxb7 {[%clk 0:00:31.3]} 24... Nxb2 {[%clk 0:01:48.8]} 25. Nc5
{[%clk 0:00:29.8]} 25... Nc4 {[%clk 0:01:45.2]} 26. Nxa6 {[%clk 0:00:24.5]}
26... Nxa3 {[%clk 0:01:45.7]} 27. Kg2 {[%clk 0:00:24.1]} 27... Ke7 {[%clk
0:01:44.8]} 28. Nc5 {[%clk 0:00:15.7]} 28... Rc8 {[%clk 0:01:44.4]} 29. Nd3
{[%clk 0:00:11.2]} 29... Rc4 {[%clk 0:01:41.3]} 30. Nf3 {[%clk 0:00:07]} 30...
Rxc2+ {[%clk 0:01:41]} 31. Kh3 {[%clk 0:00:06.6]} 31... Rc3 {[%clk 0:01:41.4]}
32. Nfe1 {[%clk 0:00:06.8]} 32... Nc2 {[%clk 0:01:41.6]} 33. Nxc2 {[%clk
0:00:06.4]} 33... Rxd3 {[%clk 0:01:41.4]} 34. Nb4 {[%clk 0:00:06.4]} 34... Rb3
{[%clk 0:01:40.9]} 35. Na6 {[%clk 0:00:06.8]} 35... b4 {[%clk 0:01:41.2]} 36.
Kg4 {[%clk 0:00:07.2]} 36... Rb1 {[%clk 0:01:40.8]} 37. Nc5 {[%clk 0:00:07.7]}
37... b3 {[%clk 0:01:41]} 0-1

[Event "*** SCC Grand Prix: Titled Tuesday Blitz"]
[Site "Chess.com"]
[Date "2020.06.23"]
[Round "7"]
[White "GMMatamoros"]
[Black "justantan"]
[Result "0-1"]
[WhiteElo "2543"]
[BlackElo "2772"]
[TimeControl "180+1"]
[EndTime "11:16:14 PDT"]
[Termination "justantan won by resignation"]

1. c4 {[%clk 0:03:00.9]} 1... c5 {[%clk 0:02:59.4]} 2. g3 {[%clk 0:03:00.9]}
2... Nc6 {[%clk 0:02:58.8]} 3. Bg2 {[%clk 0:03:01.3]} 3... g6 {[%clk 0:02:59.7]}
4. Nc3 {[%clk 0:03:01.4]} 4... Bg7 {[%clk 0:03:00.3]} 5. Rb1 {[%clk 0:03:01.6]}
5... d6 {[%clk 0:03:00.6]} 6. a3 {[%clk 0:03:01]} 6... e6 {[%clk 0:03:01]} 7. b4
{[%clk 0:02:59.6]} 7... Nge7 {[%clk 0:03:01.9]} 8. e3 {[%clk 0:02:51.3]} 8...
O-O {[%clk 0:03:01.3]} 9. Nge2 {[%clk 0:02:51.7]} 9... Rb8 {[%clk 0:03:00.7]}
10. O-O {[%clk 0:02:49.3]} 10... b6 {[%clk 0:02:57.3]} 11. d4 {[%clk 0:02:44.3]}
11... Bb7 {[%clk 0:02:54.7]} 12. d5 {[%clk 0:02:40]} 12... Ne5 {[%clk
0:02:50.2]} 13. Qb3 {[%clk 0:02:22.6]} 13... exd5 {[%clk 0:02:39.9]} 14. cxd5
{[%clk 0:02:18.6]} 14... Rc8 {[%clk 0:02:31.6]} 15. Bb2 {[%clk 0:02:10.4]} 15...
cxb4 {[%clk 0:02:22.6]} 16. axb4 {[%clk 0:02:11.3]} 16... Nc4 {[%clk 0:02:23]}
17. Bc1 {[%clk 0:02:11.4]} 17... Nf5 {[%clk 0:02:18.1]} 18. Rd1 {[%clk
0:02:07.3]} 18... Re8 {[%clk 0:02:17]} 19. Nb5 {[%clk 0:01:52.4]} 19... Ba6
{[%clk 0:01:47.4]} 20. Ned4 {[%clk 0:01:27.3]} 20... Qd7 {[%clk 0:01:37]} 21.
Nxf5 {[%clk 0:01:15.8]} 21... Qxf5 {[%clk 0:01:32.8]} 22. Nxa7 {[%clk
0:01:11.6]} 22... Ra8 {[%clk 0:01:32.2]} 23. Nc6 {[%clk 0:01:06.6]} 23... Bb5
{[%clk 0:01:32.7]} 24. e4 {[%clk 0:00:49.7]} 24... Rxe4 {[%clk 0:01:13.8]} 25.
Bxe4 {[%clk 0:00:44.4]} 25... Qxe4 {[%clk 0:01:14.7]} 26. Bf4 {[%clk 0:00:38.7]}
26... Ra3 {[%clk 0:01:11.3]} 27. f3 {[%clk 0:00:20.5]} 27... Qe2 {[%clk
0:01:05.5]} 0-1